{"text_format":"1","workbook":"xlsx","n_sheets":4,"sheets":["Frontier Map","Stations","Systems","Araks"],"not_rendered":{"charts":0,"images":5,"macros":1,"external_links":0,"defined_names":8,"comments":3,"pivot_tables":0},"unopened":[],"bounds":{"document_bytes":16777216,"sheet_cells":100000,"rows_first":2000,"rows_last":500,"rows_between":2000,"halvings":0,"cell_chars":16384,"cell_head_chars":4096},"cells_cut":0,"cells_raw":0,"read":"whole","date_system":"1900"}

{"sheet":"Frontier Map","index":0,"n_rows":45,"n_cols":66,"rows_kept":45,"cut":false,"hidden":false,"merged":[]}
[null,1,{"$f":"B1+1","v":2},3,4,5,6,7,8,9,10,11,12,13,14,15,16,17,18,19,20,21,22,23,24,25,26,27,28,29,30,31,32,33,{"$f":"AH1+1","v":34},35,36,37,38,39,40,41,42,43,44,45,46,47,48,49,50,51,52,53,54,55,56,57,58,59,60,"x"]
[1,null,null,null,null,null,null,null,null,null,null,null,null,null,null,null,null,null,null,null,null,null,null,null,null,null,null,null,null,null,null,null,null,null,null,null,null,null,null,null,null,null,null,null,null,null,null,null,null,null,null,null,null,null,null,null,null,null,null,null,null,"x"]
[{"$f":"1+A2","v":2}]
[3,null,null,null,null,null,null,null,null,null,null,null,null,null,null,null,null,null,null,null,null,null,null,null,null,null,null,null,null,null,null,null,null,null,null,null,null,null,null,null,null,null,null,null,null,null,null,null,null,null,null,null,null,null,null,null,null,null,null,null,null,null,null,null,null,"5’ x 5’"]
[4,null,null,null,null,null,null,null,null,null,null,null,null,null,null,null,null,null,null,null,null,null,null,null,null,null,null,null,null,null,null,null,null,null,null,null,null,null,null,null,null,null,null,null,null,null,null,null,null,null,null,null,null,null,null,null,null,null,null,null,null,null,null,null,null,"Pit"]
[5]
[6]
[7]
[8]
[9]
[10]
[11]
[12]
[13]
[14]
[15]
[16]
[17]
[18]
[19]
[20]
[21,null,null,null,null,null,null,null,null,null,null,null,null,null,null,null,null,null,null,null,null,null,null,null,null,null,null,null,null,null,null,null,null,null,null,null,null,null,null,null,null,null,null,null,null,null,null,null,null,null,null,null,null,null,null,null,null,null,null,null,null,"E"]
[22]
[23]
[24]
[25]
[26]
[27]
[28]
[29]
[30]
[31]
[32]
[33]
[34]
[35]
[36]
[37]
[38]
[39]
[40]
[41]
[42]
[43]
["x",null,null,null,null,null,null,null,null,null,null,null,null,null,null,null,null,null,null,null,null,null,null,null,null,null,null,null,null,null,null,null,null,null,null,null,null,null,null,null,null,null,null,null,null,null,null,null,null,null,null,null,null,null,null,null,null,null,null,null,null,"x"]

{"sheet":"Stations","index":1,"n_rows":93,"n_cols":5,"rows_kept":93,"cut":false,"hidden":false,"merged":[]}
["Planet","Moon","Space Station","Planet, Moon, or Space Station","System"]
["Henz",null,null,{"$f":"CONCATENATE(A2,B2,C2)","v":"Henz"},"Araks"]
[null,null,"Araks Station","Araks Station","Araks"]
["Yast",null,null,"Yast","Athor"]
[null,null,"Athor Station","Athor Station","Athor"]
["Faire",null,null,"Faire","Capella"]
[null,"Astraa",null,"Astraa","Capella"]
["Faire",null,null,"Faire","Capella"]
["Homeworld",null,null,"Homeworld","Capella"]
[null,"Bigoo",null,"Bigoo","Capella"]
["Ifshna",null,null,"Ifshna","Capella"]
["Rupert’s Hole",null,null,"Rupert’s Hole","Cassidine"]
["Triad",null,null,"Triad","Cassidine"]
[null,null,"Cassidine Station","Cassidine Station","Cassidine"]
["Pi’Ka’Nair",null,null,"Pi’Ka’Nair","Cryxia"]
["T T’zaan",null,null,"T T’zaan","Cryxia"]
["Cass",null,null,"Cass","Devco"]
["Laco",null,null,"Laco","Dixon’s Star"]
[null,null,"Dixon Station","Dixon Station","Dixon’s Star"]
["Inner Reach",null,null,"Inner Reach","Dramune"]
[null,"Pell",null,"Pell","Dramune"]
["Outer Reach",null,null,"Outer Reach","Dramune"]
[null,null,"Dramune Station","Dramune Station","Dramune"]
["Forge",null,null,"Forge","Fochrik"]
["Hum",null,null,"Hum","Fochrik"]
["Larg",null,null,"Larg","Fochrik"]
["Groth",null,null,"Groth","Fromeltar"]
["Terledrom",null,null,"Terledrom","Fromeltar"]
[null,"Leen",null,"Leen","Fromeltar"]
[null,null,"Fromeltar Station","Fromeltar Station","Fromeltar"]
["Hargut",null,null,"Hargut","Gruna Garu"]
[null,null,"Gruna Garu Station","Gruna Garu Station","Gruna Garu"]
["Ken’zah-Kit",null,null,"Ken’zah-Kit","K’aken-Kar"]
[null,null,"K’aken-Kar Station",{"$f":"CONCATENATE(A34,B34,C34)","v":"K’aken-Kar Station"},"K’aken-Kar"]
["Kawdl-Kit",null,null,"Kawdl-Kit","K’tsa-Kar"]
[null,null,"K’tsa-Kar Station","K’tsa-Kar Station","K’tsa-Kar"]
["Stenmar",null,null,"Stenmar","Kazak"]
["Zik-Kit",null,null,"Zik-Kit","Kizk’-Kar"]
[null,null,"Kizk’-Kar Station","Kizk’-Kar Station","Kizk’-Kar"]
["Point Go",null,null,"Point Go","Klaeok"]
["Snowball",null,null,"Snowball","Liberty"]
[null,null,"Liberty Station","Liberty Station","Liberty"]
["Moonworld",null,null,"Moonworld","Lynchpin"]
[null,"Dillon",null,"Dillon","Lynchpin"]
[null,"Duahydra",null,"Duahydra","Lynchpin"]
[null,null,"Lynchpin Station","Lynchpin Station","Lynchpin"]
["Kdikit",null,null,"Kdikit","Madderly’s Star"]
["Kdikit",null,null,"Kdikit","Madderly’s Star"]
[null,"Jupiter",null,"Jupiter","Madderly’s Star"]
[null,"Shang-Ti",null,"Shang-Ti","Madderly’s Star"]
[null,null,"Madderly Station","Madderly Station","Madderly’s Star"]
["Mechano",null,null,"Mechano","Mechan"]
[null,null,"Mechan Station","Mechan Station","Mechan"]
["Corpco",null,null,"Corpco","New Streel"]
[null,null,"New Streel Station","New Streel Station","New Streel"]
["Fhlold",null,null,"Fhlold","Osak"]
["Osaka",null,null,"Osaka","Osak"]
[null,"Octon",null,"Octon","Osak"]
[null,"Ontair",null,"Ontair","Osak"]
["Piscatien",null,null,"Piscatien","Osak"]
["Reanee",null,null,"Reanee","Osak"]
["Wonma",null,null,"Wonma","Osak"]
["Exodus",null,null,"Exodus","Pan-Gal"]
["Genesis",null,null,"Genesis","Pan-Gal"]
["Gran Quivera",null,null,{"$f":"CONCATENATE(A65,B65,C65)","v":"Gran Quivera"},"Prenglar"]
["Morgaine’s World",null,null,"Morgaine’s World","Prenglar"]
[null,"Grey",null,"Grey","Prenglar"]
[null,null,"Prenglar Station","Prenglar Station","Prenglar"]
["Alcazzar",null,null,"Alcazzar","Rhianna"]
["Hakosoar",null,null,"Hakosoar","Scree Fron"]
[null,"Infi",null,"Infi","Scree Fron"]
["Histran",null,null,"Histran","Scree Fron"]
[null,null,"Scree Fron Station","Scree Fron Station","Scree Fron"]
["Ringar",null,null,"Ringar","Solar Major"]
[null,null,"Solar Major Station","Solar Major Station","Solar Major"]
["Circe",null,null,"Circe","Solar Minor"]
["Kir’-Kut",null,null,"Kir’-Kut","Solar Minor"]
[null,null,"Solar Minor Station","Solar Minor Station","Solar Minor"]
["Starmist",null,null,"Starmist","Sundown"]
["Minotaur",null,null,"Minotaur","Theseus"]
[null,null,"Theseus Station","Theseus Station","Theseus"]
["Lossend",null,null,"Lossend","Timeon"]
[null,null,"Timeon Station","Timeon Station","Timeon"]
["Kraatar",null,null,"Kraatar","Tristkar"]
[null,null,"Tristkar Station","Tristkar Station","Tristkar"]
["New Pale",null,null,"New Pale","Truane’s Star"]
["Pale",null,null,"Pale","Truane’s Star"]
[null,null,"Truane’s Star Station","Truane’s Star Station","Truane’s Star"]
["Mahg Mar",null,null,"Mahg Mar","Waller Nexus"]
[null,null,"Waller Nexus Station","Waller Nexus Station","Waller Nexus"]
["Gollywog",null,null,"Gollywog","White Light"]
["Anker",null,null,"Anker","Zebulon"]
["Volturnus",null,null,"Volturnus","Zebulon"]

{"sheet":"Systems","index":2,"n_rows":43,"n_cols":5,"rows_kept":43,"cut":false,"hidden":false,"merged":[]}
["System","Astro X","Astro Y","Peripherality","Reference"]
["Alpha",29,27,{"$f":"SQRT(((VLOOKUP($A2,$A$2:$C$43,2,FALSE)-30)*(VLOOKUP($A2,$A$2:$C$43,2,FALSE)-30))+((VLOOKUP($A2,$A$2:$C$43,3,FALSE)-21)*(VLOOKUP($A2,$A$2:$C$43,3,FALSE)-21)))","v":6.0827625302982193}]
["Araks",11,29,20.615528128088304,"SFM 2"]
["Athor",17,24,13.341664064126334,"SFM 3"]
["Belnafaer",17,18,13.341664064126334]
["Beta",12,32,21.095023109728988,"SFM 20"]
["Capella",10,12,21.931712199461309]
["Cassidine",28,16,5.3851648071345037]
["Cryxia",30,3,18]
["Delta",33,23,3.6055512754639891]
["Devco",35,12,10.295630140987001]
["Dixon’s Star",24,20,6.0827625302982193,"SFM 12"]
["Dramune",31,14,7.0710678118654755]
["Epsilon",41,14,13.038404810405298]
["Fochrik",9,5,26.40075756488817]
["Fromeltar",33,7,14.317821063276353]
["Gamma",36,25,7.2111025509279782]
["Gruna Garu",19,34,17.029386365926403,"SFM 6"]
["K’aken-Kar",45,14,16.552945357246848,"SFM 23"]
["K’tsa-Kar",42,18,12.369316876852981]
["Kazak",21,5,18.357559750685819]
["Kizk’-Kar",41,8,17.029386365926403]
["Klaeok",38,4,18.788294228055936]
["Liberty",54,42,31.89043743820395]
["Lynchpin",33,41,20.223748416156685]
["Madderly’s Star",35,18,5.8309518948453007]
["Mechan",12,16,18.681541692269406]
["New Streel",39,32,14.212670403551895]
["Osak",12,9,21.633307652783937]
["Pan-Gal",25,32,12.083045973594572]
["Prenglar",28,23,2.8284271247461903,"SFM 6"]
["Rhianna",15,38,22.671568097509269]
["Scree Fron",11,18,19.235384061671343,"SFM 4"]
["Solar Major",50,17,20.396078054371138]
["Solar Minor",50,33,23.323807579381203]
["Sundown",5,24,25.179356624028344,"SFM 16"]
["Theseus",44,33,18.439088914585774,"SFM 11, 16"]
["Timeon",32,30,9.2195444572928871]
["Tristkar",45,28,16.552945357246848]
["Truane’s Star",23,15,9.2195444572928871]
["Waller Nexus",49,41,27.586228448267445]
["White Light",40,24,10.440306508910551]
["Zebulon",19,12,14.212670403551895]

{"sheet":"Araks","index":3,"n_rows":4,"n_cols":1,"rows_kept":4,"cut":false,"hidden":false,"merged":[]}
["Araks"]
["https://starfrontiersman.com/data/issues/SF02.pdf"]
["Habitable Planets"]
["Hentz"]